Cogmind - Beta 16 --- EXPLORER MODE // 2025.12.22 @ 12:04:45 Player: K.K.Y. Result: Destroyed by Y2-RPS(R) with Subdweller Beam Cannon Performance ------------- Evolutions (0) 0 Regions Visited (3) 600 Robots Destroyed (28) 140 Value Destroyed (482) 482 Prototype IDs (6) 120 Alien Tech Used (0) 0 Bonus (0) 0 TOTAL SCORE: 1342 Bonus ------- None Cogmind --------- Core Integrity 0/250 Matter 199/300 Energy 310/310 System Corruption 0% Temperature Cool (44) Movement Rolling (130) Ox2 Location -10/Subcaves Parts ------- > --- POWER (1) -------- Fission Core > --- PROPULSION (2) --- Subdweller Monowheel > --- UTILITY (3) ------ High-capacity Storage Unit Utility Shielding > --- WEAPON (2) ------- Beamcaster Minigun > --- INVENTORY (20) --- Light Angular Momentum Engine Medium Storage Unit Cargo Storage Unit Weight Redist. System Machine Analyzer Sensor Array Experimental Sensor Array Improved Terrain Scanner Improved Terrain Scanner Light Armor Plating Hardened Medium Armor Plating Hardened Medium Armor Plating Improved Light Armor Plating System Shield Recalibrator Assault Rifle Concussive RPG (1) Mining Laser Peak State ------------ > --- POWER ------------ Fission Core > --- PROPULSION ------- Subdweller Monowheel Subdweller Monowheel > --- UTILITY ---------- High-capacity Storage Unit Utility Shielding > --- WEAPON ----------- Beamcaster Minigun > --- INVENTORY -------- Light Angular Momentum Engine Medium Storage Unit Cargo Storage Unit Weight Redist. System Machine Analyzer Sensor Array Experimental Sensor Array Improved Terrain Scanner Improved Terrain Scanner Light Armor Plating Hardened Medium Armor Plating Hardened Medium Armor Plating Improved Light Armor Plating System Shield Recalibrator Assault Rifle Concussive RPG Mining Laser [Rating: 24] Favorites ----------- Power Fission Core Engine Ion Engine Power Core Fission Core Propulsion Light Treads Treads Light Treads Wheel Subdweller Monowheel Utility Utility Shielding Device Improved Terrain Scanner Storage High-capacity Storage Unit Protection Utility Shielding Weapon Assault Rifle Energy Gun Small Laser Ballistic Gun Assault Rifle Ballistic Cannon Bore Cannon Special Weapon Mining Laser Build | -11 -10 -10 -10 ------- Run | Yrd Mat Min Sub Slots Evolved 1 | . 1 . . Power . | . . . . Propulsion . | . . . . Utility 1 | . 1 . . Weapon . | . . . . Parts Attached 19 | 8 4 3 4 Power 3 | 1 1 1 . Engine 2 | 1 1 . . Core 1 | . . 1 . Reactor . | . . . . Propulsion 4 | 2 . . 2 Treads 2 | 2 . . . Leg . | . . . . Wheel 2 | . . . 2 Hover . | . . . . Flight . | . . . . Utility 5 | 3 1 1 . Device 1 | 1 . . . Storage 2 | . 1 1 . Processor . | . . . . Hackware . | . . . . Protection 2 | 2 . . . Artifact . | . . . . Weapon 7 | 2 2 1 2 Energy Gun 2 | 1 . . 1 Energy Cannon . | . . . . Ballistic Gun 3 | . 2 . 1 Ballistic Cannon 1 | . . 1 . Launcher . | . . . . Special Weapon 1 | 1 . . . Impact Weapon . | . . . . Slashing Weapon . | . . . . Piercing Weapon . | . . . . Special Melee Weapon . | . . . . Unidentified Prototypes . | . . . . Parts Lost 6 | . . 2 4 Power 1 | . . 1 . Propulsion 3 | . . 1 2 Utility 1 | . . . 1 Weapon 1 | . . . 1 Highest Loss Streak 2 | . . 1 2 To Critical Strikes . | . . . . Average Backups 12 | 4 6 15 18 Power . | . . . 1 Propulsion . | 1 . . . Utility 10 | 2 5 12 14 Weapon 1 | . . 1 2 Tool/Special . | . . . . Unused Backups 14 | . . . 14 Power 1 | . . . 1 Propulsion . | . . . . Utility 12 | . . . 12 Weapon . | . . . . Tool/Special 1 | . . . 1 Average Slot Usage (%) 90 | . 97 87 80 Engine 4 | . 12 . . Core 7 | . . 11 12 Treads 16 | . 25 12 7 Storage 11 | . 10 12 12 Protection 24 | . 25 25 20 Energy Gun 3 | . 10 . . Ballistic Gun 12 | . 11 12 12 Ballistic Cannon 7 | . . 11 11 Peak Build Rating 24 | 9 9 20 24 Average Rating 14 | 3 8 17 19 On Entrance 9 | . 7 9 20 Avg Prop Armor Cover (%) 12 | . . 12 . Naked Turns . | . . . . Heaviest Build 63 | 7 20 63 63 Greatest Support 40 | 40 40 40 40 Greatest Overweight (x) 20 | 1 . 3 20 Average Overweight (x) 1 | . . 2 4 Largest Inventory Capacity 20 | 5 10 20 20 Average Capacity 15 | 5 9 18 20 Most Carried 20 | 5 10 20 20 Average Carried 13 | 4 7 16 19 Final Capacity 20 | 5 10 20 20 Final Carried 20 | 2 10 20 19 Class Distribution -------------------- 100% | Hacker-Mutant Dominant Class ---------------- Hacker-Mutant | -10/Materials Hacker-Mutant | -10/Mines Hacker-Mutant | -10/Subcaves Resources | -11 -10 -10 -10 ----------- Run | Yrd Mat Min Sub Matter Collected 608 | 224 103 256 25 Remotely . | . . . . Salvage Created 788 | 188 297 249 54 Parts 47 | 18 23 3 3 Haulers Intercepted 2 | . 2 . . Recyclers Shooed 1 | . 1 . . Parts Field Recycled . | . . . . Retrieved Matter . | . . . . Parts Self-Destructed . | . . . . Prevented . | . . . . Parts Restored . | . . . . Kills | -11 -10 -10 -10 ------- Run | Yrd Mat Min Sub Combat Hostiles Destroyed 23 | . 10 12 1 Guns 20 | . 10 9 1 Cannons 3 | . . 3 . Classes Destroyed 10 | 2 5 2 1 Tunneler 5 | 5 . . . Hauler 2 | . 2 . . Recycler 1 | 1 . . . Mechanic 1 | . 1 . . Watcher 2 | . 2 . . Swarmer 10 | . 8 2 . Grunt 4 | . 2 2 . Demolisher 2 | . . 2 . Subdweller 1 | . . . 1 Assembled 6 | . . 6 . Best Kill Streak 5 | 5 3 3 1 Combat Bots Only 3 | . 3 3 1 Max Kills in Single Turn 1 | 1 1 1 1 Gunslinging . | . . . . Exploded . | . . . . Melee . | . . . . Uniques/NPCs Destroyed . | . . . . Combat | -11 -10 -10 -10 -------- Run | Yrd Mat Min Sub Hostile Shots Fired 123 | . 37 63 23 Missed 23 | . 5 16 2 Hits 100 | . 32 47 21 Melee 8 | . . 8 . Projectile 92 | . 32 39 21 AOE 8 | . . 8 . Critical Strikes 1 | . . 1 . Part Disruptions 3 | . . 3 . Damage Taken 1118 | . 215 562 341 Core 267 | . 43 120 104 Absorbed by Shields . | . . . . Redirected to Shielding 51 | . 17 31 3 Ignored by Resistances 678 | . 143 337 198 Core Remaining (%) 100 | 100 . . . Volleys Fired 117 | 16 47 39 15 Largest 2 | 2 2 2 2 Hottest 140 | 140 140 68 100 Shots Fired 184 | 17 72 69 26 Gun 160 | 16 66 58 20 Cannon 17 | . . 11 6 Launcher . | . . . . Special 7 | 1 6 . . Kinetic 118 | . 25 69 24 Thermal 66 | 17 47 . 2 Explosive . | . . . . Electromagnetic . | . . . . Robot Hit Streak 27 | 9 18 14 27 Robot Miss Streak 4 | 1 4 2 . Penetration Max . | . . . . Secondary Targets 1 | . 1 . . Max Gunslinging Chain 1 | . 1 . . Shots Hit Robots 144 | 15 53 55 21 Core Hits 61 | 7 25 27 2 Critical Kills 3 | . . 3 . Critical Parts Destroyed 2 | . . 2 . Critical Strikes 7 | . . 6 1 Destroy 7 | . . 6 1 Melee Attacks . | . . . . Impact . | . . . . Slashing . | . . . . Piercing . | . . . . Sneak Attacks . | . . . . Combat Hostiles . | . . . . Follow-up Attacks . | . . . . Damage Inflicted 1608 | 158 677 674 99 Guns 1263 | 158 533 495 77 Cannons 201 | . . 179 22 Explosions . | . . . . Melee . | . . . . Ramming . | . . . . Kinetic 887 | . 135 674 78 Thermal 721 | 158 542 . 21 Explosive . | . . . . Electromagnetic . | . . . . Impact . | . . . . Slashing . | . . . . Piercing . | . . . . Highest Corruption . | . . . . Average Corruption . | . . . . Corruption Purged . | . . . . Corruption Blocked . | . . . . Overload Shots . | . . . . Overflow Damage 6 | . 6 . . Projectiles 6 | . 6 . . Explosions . | . . . . Melee . | . . . . Knockbacks 2 | . . 2 . Impact . | . . . . Kinetic 2 | . . 2 . Secondary . | . . . . Self-Inflicted Damage . | . . . . Shots . | . . . . Rammed . | . . . . Targets Rammed . | . . . . Kicked . | . . . . Crushed . | . . . . Highest Temperature 120 | 40 120 60 35 Average Temperature 33 | 31 38 23 26 Received Heat Transfer 341 | . 30 194 117 Siege Activations . | . . . . Martial Activations . | . . . . Shielding Activations . | . . . . Robots Disrupted . | . . . . Combat Hostiles . | . . . . Robots Corrupted . | . . . . Combat Hostiles . | . . . . Parts Fried . | . . . . Impact Corruptions . | . . . . Robots Melted . | . . . . Combat Hostiles . | . . . . Parts Melted . | . . . . Heat Transferred 1612 | 375 1200 . 37 Parts Sabotaged . | . . . . Parts Stolen . | . . . . Parts Stripped . | . . . . Power Chain Reactions . | . . . . Alert | -11 -10 -10 -10 ------- Run | Yrd Mat Min Sub Maximum Alert Level . | . . . . Low Security (%) 100 | 100 100 100 . Level 1 . | . . . . Level 2 . | . . . . Level 3 . | . . . . Level 4 . | . . . . Level 5 . | . . . . High Security . | . . . . Max Security . | . . . . Peak Influence 57 | 15 55 57 . Initial 2 | . 2 . . Average 2 | 2 4 1 . Influence Increases 493 | 30 301 162 . Destroy 0b10 Robot/C 320 | . 200 120 . Destroy 0b10 Robot/NC 55 | 30 25 . . Destroy Leader 88 | . 58 30 . Successful Hack 18 | . 18 . . Disable Machine 4 | . . 4 . Destroy Structure 8 | . . 8 . Influence Decreases 493 | 25 306 162 . Entered New Map 3 | . 3 . . Time Decay 490 | 25 303 162 . Squads Dispatched 2 | . 1 1 . Investigation 2 | . 1 1 . Extermination . | . . . . Reinforcement . | . . . . Assault . | . . . . Garrison . | . . . . Intercept . | . . . . Searches Triggered . | . . . . Construction Impeded . | . . . . Haulers Reinforced . | . . . . Active Scanning Responses . | . . . . Cargo Convoy Interrupts . | . . . . Stealth | -11 -10 -10 -10 --------- Run | Yrd Mat Min Sub Distress Signals 2 | . 1 1 . Communications Jammed . | . . . . Distress Signals . | . . . . Times Spotted 38 | . 18 18 2 Peak Tracking Total 7 | . 4 7 1 Tactical Retreats 3 | . . 3 . Traps | -11 -10 -10 -10 ------- Run | Yrd Mat Min Sub Traps Triggered 4 | . 4 . . Indirectly . | . . . . Trap Hack Attempts . | . . . . Triggered . | . . . . Disarmed . | . . . . Reprogrammed . | . . . . Reused . | . . . . Traps Extracted . | . . . . Installed . | . . . . Triggered . | . . . . Machines | -11 -10 -10 -10 ---------- Run | Yrd Mat Min Sub Machines Disabled 1 | . . 1 . Max in Single Turn 1 | . . 1 . Machines Repaired . | . . . . Machines Dismantled . | . . . . Machines Sabotaged . | . . . . Overloaded Fab Kills . | . . . . Hacking | -11 -10 -10 -10 --------- Run | Yrd Mat Min Sub Machines Accessed 9 | . 8 1 . Terminals 6 | . 6 . . Fabricators . | . . . . Repair Stations . | . . . . Recycling Units 2 | . 2 . . Scanalyzers . | . . . . Garrison Access . | . . . . Total Hacks 21 | . 20 1 . Successful 16 | . 15 1 . Failed 5 | . 5 . . Catastrophic . | . . . . Database Lockouts . | . . . . Manual 13 | . 13 . . Terminals 16 | . 16 . . Fabricators . | . . . . Repair Stations . | . . . . Recycling Units 4 | . 4 . . Scanalyzers . | . . . . Garrison Access . | . . . . Terminal Hacks 8 | . 7 1 . Prototype ID Bank 6 | . 6 . . Open Door 1 | . . 1 . Machine Index 1 | . 1 . . Fabricator Hacks . | . . . . Repair Station Hacks . | . . . . Recycling Unit Hacks 2 | . 2 . . Retrieve Components 2 | . 2 . . Scanalyzer . | . . . . Garrison Access Hacks . | . . . . Unauthorized Hacks 6 | . 6 . . Terminals 6 | . 6 . . Botnet 6 | . 6 . . Fabricators . | . . . . Repair Stations . | . . . . Recycling Units . | . . . . Scanalyzers . | . . . . Garrison Access . | . . . . Data Cores Recovered . | . . . . Used . | . . . . Hacking Detections 6 | . 6 . . Full Trace Events 4 | . 4 . . Feedback Events . | . . . . Feedback Blocked . | . . . . Robot Schematics Acquired . | . . . . Robots Built . | . . . . Authchips . | . . . . Time . | . . . . Total Robot Build Rating . | . . . . Part Schematics Acquired . | . . . . Parts Built . | . . . . Authchips . | . . . . Time . | . . . . Total Part Build Rating . | . . . . Part Studies Acquired . | . . . . Parts Repaired . | . . . . Time . | . . . . Parts Recycled . | . . . . Recycled Matter . | . . . . Retrieved Matter . | . . . . Retrieved Components 13 | . 13 . . Parts Scanalyzed . | . . . . Part Schematics Acquired . | . . . . Parts Damaged . | . . . . Bothacking | -11 -10 -10 -10 ------------ Run | Yrd Mat Min Sub Used RIF Installer . | . . . . Robots Hacked . | . . . . Non-combat . | . . . . Combat . | . . . . Robot Hacks Applied . | . . . . Relay Couplers Released . | . . . . Fabnet Peak Effective % . | . . . . Robots Rewired . | . . . . Allies Hacked . | . . . . Hacks Repelled . | . . . . Allies | -11 -10 -10 -10 -------- Run | Yrd Mat Min Sub Total Allies . | . . . . Largest Group . | . . . . Highest-Rated Group . | . . . . Highest-Rated Ally . | . . . . Total Orders . | . . . . Ally Attacks . | . . . . Total Damage . | . . . . Kills . | . . . . Allies Corrupted . | . . . . Allies Melted . | . . . . Intel | -11 -10 -10 -10 ------- Run | Yrd Mat Min Sub Active Infowar (turns) 29 | 29 . . . Terrain 29 | 29 . . . Robot Analysis Total . | . . . . Derelict Logs Recovered 2 | . . . 2 Drone Launches . | . . . . Drone Recoveries . | . . . . Exploration | -11 -10 -10 -10 ------------- Run | Yrd Mat Min Sub Turns Passed 5100 | 89 1742 2698 571 Spaces Moved 1835 | 51 948 712 124 Core 61 | 48 . . 13 Treads 1754 | 3 948 712 91 Legs . | . . . . Wheels 20 | . . . 20 Hover . | . . . . Flight . | . . . . Fastest Speed 50 | 50 160 160 120 Average Speed 251 | 77 160 355 423 Slowest Speed 1050 | 160 160 400 1050 Overloaded Moves . | . . . . Propulsion Burnouts . | . . . . Robots Hopped . | . . . . Potential Cave-ins . | . . . . Cave-ins Triggered . | . . . . Exploration Rate (%) 51 | 4 97 97 9 Regions Visited 3 Branch Regions 2 Pre-discovered Areas 1 | . . . 1 Known Exits Taken 3 | 1 1 1 . Unknown Exits Taken . | . . . . Scrap Searched 3 | . . . 3 Spaces Dug . | . . . . Terrain Destroyed 9 | 1 . 8 . Melee . | . . . . Projectile 9 | 1 . 8 . AOE . | . . . . Terrain Rammed . | . . . . Walls Destroyed . | . . . . Machines Disabled . | . . . . Actions | -11 -10 -10 -10 --------- Run | Yrd Mat Min Sub Total 2130 | 80 1094 813 143 Wait 133 | . 83 50 . Move 1832 | 50 947 711 124 Hop . | . . . . Pick Up 24 | 5 9 10 . Fast Attach 7 | 4 . 1 2 Attach 7 | 4 2 . 1 Detach 2 | 1 1 . . Swap 6 | . 3 2 1 Drop 2 | . 2 . . Fire 117 | 16 47 39 15 Melee . | . . . . Ram . | . . . . Kick . | . . . . Crush . | . . . . Escape Stasis . | . . . . Rewire . | . . . . Trap . | . . . . Miscellaneous . | . . . . Route ------- -11/Scrapyard -10/Materials (discovered 5 exits: *Mat x3 / *Min / *Sub) -10/Mines (discovered 4 exits: *Mat x2 / *Exi / *Sub) -10/Subcaves History --------- Turn | Location | Event 11 | -11/Scrapyard | Identified exit to Materials 11 | -11/Scrapyard | Discovered exit to Materials (range 16) 90 | -11/Scrapyard | Entered Materials 90 | -10/Materials | Evolved 1 slot: Utility x1 294 | -10/Materials | Identified exit to Mines 294 | -10/Materials | Discovered exit to Mines (range 16) 315 | -10/Materials | Build established: Hacker-Mutant 888 | -10/Materials | Identified exit to Materials 888 | -10/Materials | Discovered exit to Materials (range 14) 1014 | -10/Materials | Discovered exit to Materials (range 10) 1407 | -10/Materials | Discovered exit to Materials (range 10) 1822 | -10/Materials | Identified exit to Subcaves 1822 | -10/Materials | Discovered exit to Subcaves (range 8) 1832 | -10/Materials | Entered Mines 1832 | -10/Mines | Discovered exit to Materials (range 10) 1833 | -10/Mines | Assembled infested the area 1838 | -10/Mines | Assisted by a Guerilla fighting off Assembled 2007 | -10/Mines | Received a Rocket Launcher from a helpful Derelict 2035 | -10/Mines | Core integrity fell below 50% 2291 | -10/Mines | Found a damaged Exp. Sensor Array with a note attached 2298 | -10/Mines | Found Prototype Device 2540 | -10/Mines | Met a Derelict shopkeep closing up shop 2662 | -10/Mines | Discovered exit to Subcaves (range 7) 3419 | -10/Mines | Deemed a non-threat by the Exiles lab entrance 3419 | -10/Mines | Identified exit to Exiles 3419 | -10/Mines | Discovered exit to Exiles (range 5) 3607 | -10/Mines | Discovered exit to Materials (range 11) 4530 | -10/Mines | Entered Subcaves 4530 | -10/Subcaves | Learned Materials trap positions 4690 | -10/Subcaves | Learned location of Zion (-6) 5061 | -10/Subcaves | Shifting Twisted Machinery released Barrage Gun 5069 | -10/Subcaves | Shifting Twisted Machinery released Sub. Beam Cannon 5078 | -10/Subcaves | Core integrity fell below 20% 5101 | -10/Subcaves | Destroyed by Y2-RPS(R) with Subdweller Beam Cannon Last Messages --------------- 04998_ Searching scrap... 04998_ Found Sub. Machine Gun. 04998_ Found 34 Matter. 05008_ Searching scrap... 05008_ Found Sub. Monowheel. 05008_ Found Flamer. 05008_ Found 42 Matter. 05037_ Subatomizers dissect the Sub. Machine Gun. 05040_ Acquired Sub. Monowheel. Barrage Gun falls loose from the Twisted Machinery. Sub. Beam Cannon falls loose from the Twisted Machinery. 05071_ Y2-RPS(R): "ECOKILL!" 05073_ Subatomizers dissect the Lgt. Treads. 05077_ Bore Cannon destroyed. 05083_ Subatomizers dissect the Lgt. Treads. 05097_ Sub. Monowheel destroyed. Map ----- +----------------------------------------------------+ | | | ?????????????????????????????????????????????????? | | ?????????????????????????????????????????????????? | | ?????????????????????????????????????????????????? | | ?????????????????????????????????????????????????? | | ?????????????????????????????????????????????????? | | ?????????????????????????????????????????????????? | | ?????????????????????????????????????????????????? | | ?????????????????????????????????????????????????? | | ?????????????????????????????????????????????????? | | ??????????????????????????????????#######????????? | | ??????????????????????????????????# %# #????????? | | ??????????????????????????????????#%[| #????????? | | ??????????????????????????????????##"&###????????? | | ??????????????????????????????????### %#?????????? | | ??????????????????????????????????#"#]####???????? | | ??????????????????????????????????# " %& #####???? | | ??????????????????????????????????# !&! # ##??? | | ???????????????????????????########" % ##?? | | ???????????????????????????# """ #?? | | ??????????????????????????##"" ##### # #?? | | ??????????????????????????#"""" ##??# ### ##?? | | ??????????? ???????????#" ""#??#%% #### ##? | | ???????????# ??????## ## #?## #### ## | | ???????????# [ ### ### #?###### # | | ????????????# ; =%= R @ #?# "#??## | | ???????????????# ! " #?### ###?## ### | | ???????????????# "[ #;##????# #???# #?# # | | ???????????????# ## ] #?##?????? #???# %#?### | | ???????????????##???## ?????????? ???# ##?## | | ???????????????????? ????????????##?# ## ### | | ??????????????????? ????????????? ?## ## | | ??????????????????## ???????????? ???# | | ???????????????????###?????????? ### ???## | | ???????????????????????????????###???# ?????## # | | ?????????????????????????????????????#???????## ## | | ??????????????????????????????????????????????###? | | ?????????????????????????????????????????????????# | | ????????????????????????????????????????????????## | | ????????????????????????????????????????????????# | | ????????????????????????????????????????????????# | | ????????????????????????????????????????????????# | | ????????????????????????????????????????????????# | | ????????????????????????????????????????????????## | | ?????????????????????????????????????????????????# | | ?????????????????????????????????????????????????? | | ?????????????????????????????????????????????????? | | ?????????????????????????????????????????????????? | | ?????????????????????????????????????????????????? | | ?????????????????????????????????????????????????? | +----------------------------------------------------+ Best States ------------- Heat Dissipation 25 Energy Generation 18 Energy Capacity 310 Matter Stores 300 Matter Capacity 300 Sight Range 16 Terrain Scan Range 16 Terrain Scan Density 10 Resistance: KI 35 Resistance: TH 35 Resistance: EX 35 Resistance: EM 35 Resistance: I 35 Resistance: S 35 Resistance: P 35 Core Shielding 20 Utility Shielding 33 Evasion (%) 50 Recoil Reduction 2 Offensive Hacking 20 Item Schematics ----------------- None Robot Schematics ------------------ None Fabricated ------------ Nothing Repaired ---------- Nothing Studied --------- None Alien Tech Used ----------------- None Achievements -------------- None Challenges ------------ None Game ------ Seed OpticalEnergyBank Manual? 0 Play Time 00:15:24 Cumulative 217.8 hours Start 2025.12.22 @ 11:50:17 End 2025.12.22 @ 12:04:45 Sessions 1 Manual Loads 0 Difficulty Explorer Special Mode None Game No. 328 Rogue 0 Adventurer 0 Explorer 328 Win Type - Total 0 Types 0/0/0/0/0/0/0/0/0/0 Lore% 71 Gallery% 68 Achievement% 53 Wizard Run 0 Options --------- Layout 1 ASCII 0 Keyboard 0 Movement Mouse Keybinds 0 Fullscreen 1 Font 24/Smallcaps Map View 50x35 Zoom Use 0% Tactical HUD 1 Map Filters NONE Filters NONE Steam 1 RUN: 5febb294-94c2-496d-b46f-4f2648d0e7d0